[Event "*** SCC Grand Prix: Titled Tuesday Blitz"]
[Site "Chess.com"]
[Date "2020.06.23"]
[Round "5"]
[White "Siniauski"]
[Black "budda"]
[Result "1-0"]
[WhiteElo "2500"]
[BlackElo "2328"]
[TimeControl "180+1"]
[EndTime "10:57:58 PDT"]
[Termination "Siniauski won by resignation"]

1. e4 {[%clk 0:03:00.9]} 1... c5 {[%clk 0:02:59.8]} 2. Nf3 {[%clk 0:03:00.9]}
2... Nc6 {[%clk 0:03:00.2]} 3. Bb5 {[%clk 0:03:01.1]} 3... g6 {[%clk 0:02:59.3]}
4. Bxc6 {[%clk 0:03:01.3]} 4... bxc6 {[%clk 0:02:59.4]} 5. O-O {[%clk
0:02:59.9]} 5... Bg7 {[%clk 0:02:59.9]} 6. c3 {[%clk 0:03:00]} 6... Nh6 {[%clk
0:02:59.9]} 7. d4 {[%clk 0:02:59.4]} 7... cxd4 {[%clk 0:02:59.9]} 8. cxd4 {[%clk
0:03:00.3]} 8... O-O {[%clk 0:03:00.3]} 9. Nbd2 {[%clk 0:02:55.1]} 9... f5
{[%clk 0:03:00.4]} 10. e5 {[%clk 0:02:44.9]} 10... Nf7 {[%clk 0:02:58.9]} 11. b3
{[%clk 0:02:42.6]} 11... h6 {[%clk 0:02:54.4]} 12. Bb2 {[%clk 0:02:40.8]} 12...
e6 {[%clk 0:02:53.4]} 13. Ba3 {[%clk 0:02:37.7]} 13... Re8 {[%clk 0:02:50.2]}
14. Nc4 {[%clk 0:02:36]} 14... Ba6 {[%clk 0:02:50]} 15. Re1 {[%clk 0:02:35.7]}
15... g5 {[%clk 0:02:35.8]} 16. Nd6 {[%clk 0:02:23.3]} 16... g4 {[%clk
0:02:25.7]} 17. Nd2 {[%clk 0:02:09.8]} 17... Bd3 {[%clk 0:02:25.6]} 18. Nxe8
{[%clk 0:01:46.1]} 18... Qxe8 {[%clk 0:02:25.4]} 19. f4 {[%clk 0:01:42.3]} 19...
gxf3 {[%clk 0:02:08.8]} 20. Qxf3 {[%clk 0:01:41.6]} 20... Ba6 {[%clk 0:02:06.1]}
21. h4 {[%clk 0:01:35.9]} 21... Bf8 {[%clk 0:02:00.2]} 22. Bxf8 {[%clk
0:01:34.9]} 22... Qxf8 {[%clk 0:02:01.1]} 23. Nc4 {[%clk 0:01:29.9]} 23... Kh7
{[%clk 0:01:52.2]} 24. Ne3 {[%clk 0:01:00.3]} 24... Qe7 {[%clk 0:01:50.8]} 25.
Qf4 {[%clk 0:00:59.3]} 25... Rg8 {[%clk 0:01:46.6]} 26. Rad1 {[%clk 0:00:51.7]}
26... Bb7 {[%clk 0:01:41.8]} 27. Rf1 {[%clk 0:00:38.5]} 27... Nh8 {[%clk
0:01:41]} 28. h5 {[%clk 0:00:29.2]} 28... Nf7 {[%clk 0:01:37.4]} 29. Nxf5 {[%clk
0:00:24.8]} 29... exf5 {[%clk 0:01:01.6]} 30. Qxf5+ {[%clk 0:00:25.7]} 30... Kg7
{[%clk 0:01:01.6]} 31. Rd2 {[%clk 0:00:16.7]} 31... Qe6 {[%clk 0:00:46.9]} 32.
Qf6+ {[%clk 0:00:09.5]} 32... Qxf6 {[%clk 0:00:35.8]} 33. Rxf6 {[%clk
0:00:10.4]} 33... Ng5 {[%clk 0:00:27.9]} 34. Rdf2 {[%clk 0:00:10.2]} 34... Kh7
{[%clk 0:00:20.4]} 35. Kf1 {[%clk 0:00:04.2]} 35... Rg7 {[%clk 0:00:18.8]} 36.
Rf8 {[%clk 0:00:03.1]} 36... Ne6 {[%clk 0:00:12.1]} 37. R8f7 {[%clk 0:00:02.8]}
37... Nxd4 {[%clk 0:00:11.2]} 38. Rxg7+ {[%clk 0:00:03.2]} 38... Kxg7 {[%clk
0:00:12.1]} 39. Rd2 {[%clk 0:00:03.8]} 39... c5 {[%clk 0:00:12.5]} 40. b4 {[%clk
0:00:04.4]} 40... Bc6 {[%clk 0:00:06.5]} 41. bxc5 {[%clk 0:00:04.1]} 41... Ne6
{[%clk 0:00:07]} 42. Rc2 {[%clk 0:00:02.6]} 42... Nf4 {[%clk 0:00:07.4]} 43. Kf2
{[%clk 0:00:02.3]} 43... Kf7 {[%clk 0:00:08]} 44. Ke3 {[%clk 0:00:01.8]} 44...
Nd5+ {[%clk 0:00:08.2]} 45. Kd4 {[%clk 0:00:02]} 45... Ke6 {[%clk 0:00:08.2]}
46. Rf2 {[%clk 0:00:02.5]} 46... Ke7 {[%clk 0:00:06.3]} 47. Rf5 {[%clk
0:00:02.2]} 47... Nb4 {[%clk 0:00:06]} 48. Rf6 {[%clk 0:00:01.9]} 48... Nc2+
{[%clk 0:00:06.2]} 49. Kc3 {[%clk 0:00:02.3]} 49... Ne3 {[%clk 0:00:06.4]} 50.
Rxh6 {[%clk 0:00:02.9]} 50... Nxg2 {[%clk 0:00:06.9]} 51. Rh7+ {[%clk 0:00:03]}
51... Ke6 {[%clk 0:00:06.4]} 52. h6 {[%clk 0:00:03.6]} 52... Nf4 {[%clk
0:00:06.3]} 53. Rg7 {[%clk 0:00:02.8]} 53... Nh5 {[%clk 0:00:05.5]} 54. h7
{[%clk 0:00:03.1]} 54... Nxg7 {[%clk 0:00:05]} 55. h8=Q {[%clk 0:00:03.8]} 55...
Kf7 {[%clk 0:00:04.9]} 56. Qd8 {[%clk 0:00:02.8]} 56... Ne6 {[%clk 0:00:04.6]}
57. Qf6+ {[%clk 0:00:03.2]} 57... Ke8 {[%clk 0:00:04.9]} 58. Kc4 {[%clk
0:00:03.5]} 58... a6 {[%clk 0:00:04.4]} 59. Qg6+ {[%clk 0:00:03.9]} 59... Ke7
{[%clk 0:00:04.6]} 60. Qf6+ {[%clk 0:00:04.8]} 60... Ke8 {[%clk 0:00:05.2]} 61.
a3 {[%clk 0:00:05.4]} 61... Bb5+ {[%clk 0:00:05]} 62. Kd5 {[%clk 0:00:05]} 62...
Nd8 {[%clk 0:00:04.1]} 63. Kd6 {[%clk 0:00:03.7]} 63... Nf7+ {[%clk 0:00:04.6]}
64. Kc7 {[%clk 0:00:03.9]} 64... Bc6 {[%clk 0:00:02.9]} 65. e6 {[%clk
0:00:04.2]} 65... dxe6 {[%clk 0:00:02.7]} 66. Qxe6+ {[%clk 0:00:04.7]} 1-0

[Event "*** SCC Grand Prix: Titled Tuesday Blitz"]
[Site "Chess.com"]
[Date "2020.06.23"]
[Round "5"]
[White "AungTZ"]
[Black "MateusViageiro"]
[Result "1-0"]
[WhiteElo "2084"]
[BlackElo "2245"]
[TimeControl "180+1"]
[EndTime "10:58:00 PDT"]
[Termination "AungTZ won by checkmate"]

1. e4 {[%clk 0:03:00.9]} 1... c5 {[%clk 0:02:58.9]} 2. Nf3 {[%clk 0:02:58.8]}
2... d6 {[%clk 0:02:59]} 3. Bb5+ {[%clk 0:02:55.1]} 3... Nd7 {[%clk 0:02:58.2]}
4. O-O {[%clk 0:02:54.3]} 4... Nf6 {[%clk 0:02:58.2]} 5. Re1 {[%clk 0:02:53.1]}
5... e6 {[%clk 0:02:58.2]} 6. c3 {[%clk 0:02:52.7]} 6... Be7 {[%clk 0:02:58.2]}
7. d4 {[%clk 0:02:52.3]} 7... O-O {[%clk 0:02:56.7]} 8. Bg5 {[%clk 0:02:47.4]}
8... h6 {[%clk 0:02:54.6]} 9. Bh4 {[%clk 0:02:46.4]} 9... a6 {[%clk 0:02:53.5]}
10. Bf1 {[%clk 0:02:44.1]} 10... b6 {[%clk 0:02:47.7]} 11. a4 {[%clk 0:02:36.2]}
11... Bb7 {[%clk 0:02:46.8]} 12. Nbd2 {[%clk 0:02:35.6]} 12... Re8 {[%clk
0:02:45.6]} 13. Qb3 {[%clk 0:01:50.3]} 13... Rb8 {[%clk 0:02:39.1]} 14. Rad1
{[%clk 0:01:44.5]} 14... Qc7 {[%clk 0:02:33.1]} 15. e5 {[%clk 0:01:16.9]} 15...
dxe5 {[%clk 0:02:29.1]} 16. dxe5 {[%clk 0:01:17]} 16... Ng4 {[%clk 0:02:27.7]}
17. Bg3 {[%clk 0:01:15]} 17... h5 {[%clk 0:02:19]} 18. Nc4 {[%clk 0:01:00.4]}
18... Bd5 {[%clk 0:02:11.1]} 19. Qc2 {[%clk 0:00:57.5]} 19... b5 {[%clk
0:02:04.4]} 20. Nd6 {[%clk 0:00:56.4]} 20... Bxd6 {[%clk 0:01:55.2]} 21. exd6
{[%clk 0:00:56.3]} 21... Qb7 {[%clk 0:01:52.3]} 22. Ng5 {[%clk 0:00:51.7]} 22...
Ngf6 {[%clk 0:01:44.2]} 23. axb5 {[%clk 0:00:50]} 23... axb5 {[%clk 0:01:42.9]}
24. b3 {[%clk 0:00:44.3]} 24... c4 {[%clk 0:01:41.1]} 25. b4 {[%clk 0:00:41.5]}
25... Qc6 {[%clk 0:01:38]} 26. Ra1 {[%clk 0:00:39.8]} 26... e5 {[%clk
0:01:35.8]} 27. f4 {[%clk 0:00:33]} 27... exf4 {[%clk 0:01:20]} 28. Bxf4 {[%clk
0:00:33]} 28... g6 {[%clk 0:01:09.8]} 29. Re7 {[%clk 0:00:31.9]} 29... Rxe7
{[%clk 0:01:03.4]} 30. dxe7 {[%clk 0:00:31.3]} 30... Re8 {[%clk 0:01:03.5]} 31.
Re1 {[%clk 0:00:30.2]} 31... Nb6 {[%clk 0:00:50.6]} 32. h3 {[%clk 0:00:29.2]}
32... Qd7 {[%clk 0:00:46.5]} 33. Qf2 {[%clk 0:00:26.8]} 33... Na4 {[%clk
0:00:44]} 34. Be5 {[%clk 0:00:26]} 34... Nh7 {[%clk 0:00:24.7]} 35. Nxh7 {[%clk
0:00:24.7]} 35... Kxh7 {[%clk 0:00:24.7]} 36. Qf6 {[%clk 0:00:24.1]} 36... Rg8
{[%clk 0:00:24.3]} 37. Bd4 {[%clk 0:00:23.6]} 37... Be6 {[%clk 0:00:20.7]} 38.
Be2 {[%clk 0:00:21.6]} 38... Nb2 {[%clk 0:00:18.9]} 39. Bf3 {[%clk 0:00:20.1]}
39... Nd3 {[%clk 0:00:18.3]} 40. Re3 {[%clk 0:00:20.3]} 40... Nc1 {[%clk
0:00:16.2]} 41. Bd1 {[%clk 0:00:19.3]} 41... Nd3 {[%clk 0:00:15.6]} 42. Bc2
{[%clk 0:00:19.1]} 42... Qe8 {[%clk 0:00:13.4]} 43. Bxd3 {[%clk 0:00:17.3]}
43... cxd3 {[%clk 0:00:14.3]} 44. Rxd3 {[%clk 0:00:17.6]} 44... Bc4 {[%clk
0:00:12.9]} 45. Re3 {[%clk 0:00:18.5]} 45... g5 {[%clk 0:00:13]} 46. Re5 {[%clk
0:00:17.8]} 46... Rg6 {[%clk 0:00:12.4]} 47. Qf2 {[%clk 0:00:17.9]} 47... g4
{[%clk 0:00:12.2]} 48. Qe3 {[%clk 0:00:17.7]} 48... gxh3 {[%clk 0:00:11.6]} 49.
Rxh5+ {[%clk 0:00:17]} 49... Kg8 {[%clk 0:00:04.9]} 50. Rh8# {[%clk 0:00:15.6]}
1-0

[Event "*** SCC Grand Prix: Titled Tuesday Blitz"]
[Site "Chess.com"]
[Date "2020.06.23"]
[Round "5"]
[White "novendrapriasmoro"]
[Black "Man-Chuk"]
[Result "0-1"]
[WhiteElo "2610"]
[BlackElo "2846"]
[TimeControl "180+1"]
[EndTime "10:58:02 PDT"]
[Termination "Man-Chuk won on time"]

1. e4 {[%clk 0:03:00.9]} 1... c6 {[%clk 0:02:58.6]} 2. d4 {[%clk 0:03:00.9]}
2... d5 {[%clk 0:02:59.5]} 3. exd5 {[%clk 0:03:01]} 3... cxd5 {[%clk 0:03:00.4]}
4. Bd3 {[%clk 0:03:01.8]} 4... Nf6 {[%clk 0:03:00.4]} 5. c3 {[%clk 0:03:02]}
5... Nc6 {[%clk 0:02:59.5]} 6. h3 {[%clk 0:03:02]} 6... g6 {[%clk 0:02:58.7]} 7.
Nf3 {[%clk 0:03:02]} 7... Bf5 {[%clk 0:02:58.1]} 8. Bxf5 {[%clk 0:03:01.4]} 8...
gxf5 {[%clk 0:02:58.1]} 9. O-O {[%clk 0:03:02.3]} 9... e6 {[%clk 0:02:56.5]} 10.
Bf4 {[%clk 0:03:02.5]} 10... Bg7 {[%clk 0:02:52.7]} 11. Re1 {[%clk 0:03:01.9]}
11... O-O {[%clk 0:02:52.8]} 12. Nbd2 {[%clk 0:03:00.6]} 12... Ne4 {[%clk
0:02:52]} 13. Nb3 {[%clk 0:02:59]} 13... Ne7 {[%clk 0:02:48.3]} 14. Be5 {[%clk
0:02:48.8]} 14... Ng6 {[%clk 0:02:40.9]} 15. Bxg7 {[%clk 0:02:48.3]} 15... Kxg7
{[%clk 0:02:41.8]} 16. Nc1 {[%clk 0:02:46.2]} 16... Nf4 {[%clk 0:02:28.9]} 17.
Nd3 {[%clk 0:02:43.6]} 17... Nxd3 {[%clk 0:02:27.4]} 18. Qxd3 {[%clk 0:02:44.5]}
18... Kh8 {[%clk 0:02:26.7]} 19. Qe3 {[%clk 0:02:25]} 19... Qf6 {[%clk
0:02:10.1]} 20. Ne5 {[%clk 0:02:23.7]} 20... Rg8 {[%clk 0:02:03.2]} 21. f3
{[%clk 0:01:54.1]} 21... f4 {[%clk 0:02:02.3]} 22. Qe2 {[%clk 0:01:48.7]} 22...
Ng3 {[%clk 0:02:00.9]} 23. Qd2 {[%clk 0:01:32]} 23... Nh5 {[%clk 0:00:59.8]} 24.
Ng4 {[%clk 0:01:30.1]} 24... Qh4 {[%clk 0:00:57.7]} 25. Qe2 {[%clk 0:01:16.1]}
25... Rg7 {[%clk 0:00:35.8]} 26. Qe5 {[%clk 0:01:12.9]} 26... f5 {[%clk
0:00:34]} 27. Qxe6 {[%clk 0:00:44]} 27... fxg4 {[%clk 0:00:30.7]} 28. fxg4
{[%clk 0:00:28]} 28... f3 {[%clk 0:00:30]} 29. Qf5 {[%clk 0:00:13.2]} 29... Qg3
{[%clk 0:00:14.1]} 30. Qxf3 {[%clk 0:00:12.4]} 30... Qxf3 {[%clk 0:00:14.5]} 31.
gxf3 {[%clk 0:00:13.3]} 31... Nf4 {[%clk 0:00:15.4]} 32. Re5 {[%clk 0:00:13]}
32... Nxh3+ {[%clk 0:00:13.9]} 33. Kh2 {[%clk 0:00:13.3]} 33... Nf4 {[%clk
0:00:10]} 34. Rae1 {[%clk 0:00:12.9]} 34... Rf8 {[%clk 0:00:09.4]} 35. Re8
{[%clk 0:00:12.2]} 35... Rf7 {[%clk 0:00:09.2]} 36. Rxf8+ {[%clk 0:00:12.5]}
36... Rxf8 {[%clk 0:00:10.1]} 37. Re7 {[%clk 0:00:12.7]} 37... Ng6 {[%clk
0:00:07.5]} 38. Rxb7 {[%clk 0:00:12.1]} 38... Rxf3 {[%clk 0:00:08]} 39. a4
{[%clk 0:00:06.3]} 39... a5 {[%clk 0:00:07.7]} 40. Rb5 {[%clk 0:00:05.9]} 40...
Kg7 {[%clk 0:00:05.1]} 41. Rxd5 {[%clk 0:00:05.1]} 41... Rf2+ {[%clk 0:00:05.3]}
42. Kg3 {[%clk 0:00:05.2]} 42... Rxb2 {[%clk 0:00:05.8]} 43. Rxa5 {[%clk
0:00:05.6]} 43... Ra2 {[%clk 0:00:05.1]} 44. Ra6 {[%clk 0:00:04.9]} 44... Kh6
{[%clk 0:00:05.4]} 45. Ra5 {[%clk 0:00:04.8]} 45... Ra3 {[%clk 0:00:05]} 46. Rc5
{[%clk 0:00:02.6]} 46... Rxa4 {[%clk 0:00:05.3]} 47. Kf3 {[%clk 0:00:02.6]}
47... Kg7 {[%clk 0:00:05]} 48. Ke4 {[%clk 0:00:03.5]} 48... Kf6 {[%clk
0:00:03.9]} 49. c4 {[%clk 0:00:04.4]} 49... Ra1 {[%clk 0:00:03.5]} 50. Rc7
{[%clk 0:00:04.5]} 50... h6 {[%clk 0:00:03.6]} 51. Rc6+ {[%clk 0:00:03.6]} 51...
Kg5 {[%clk 0:00:03.8]} 52. c5 {[%clk 0:00:03.4]} 52... Re1+ {[%clk 0:00:04.3]}
53. Kd5 {[%clk 0:00:02.9]} 53... Ne7+ {[%clk 0:00:04.5]} 54. Kd6 {[%clk
0:00:02.5]} 54... Nxc6 {[%clk 0:00:05.4]} 55. Kxc6 {[%clk 0:00:03.4]} 55... Kxg4
{[%clk 0:00:05.8]} 56. d5 {[%clk 0:00:04.3]} 56... Kf5 {[%clk 0:00:04.6]} 57. d6
{[%clk 0:00:05.2]} 57... Rd1 {[%clk 0:00:04.6]} 58. Kc7 {[%clk 0:00:04.9]} 58...
Ke6 {[%clk 0:00:04.9]} 59. Kb7 {[%clk 0:00:03.5]} 59... Rxd6 {[%clk 0:00:04.3]}
0-1

[Event "*** SCC Grand Prix: Titled Tuesday Blitz"]
[Site "Chess.com"]
[Date "2020.06.23"]
[Round "5"]
[White "PawnEatingZombie"]
[Black "abubakrtagelsir"]
[Result "0-1"]
[WhiteElo "2104"]
[BlackElo "2333"]
[TimeControl "180+1"]
[EndTime "10:58:11 PDT"]
[Termination "abubakrtagelsir won on time"]

1. d4 {[%clk 0:03:00.9]} 1... d6 {[%clk 0:03:00.4]} 2. e4 {[%clk 0:02:59.8]}
2... Nf6 {[%clk 0:03:01.2]} 3. Bd3 {[%clk 0:02:58.9]} 3... g6 {[%clk 0:03:00.7]}
4. Nf3 {[%clk 0:02:58.1]} 4... Bg7 {[%clk 0:03:01.6]} 5. c3 {[%clk 0:02:58.1]}
5... O-O {[%clk 0:03:01.8]} 6. O-O {[%clk 0:02:58.2]} 6... Bg4 {[%clk
0:03:01.4]} 7. h3 {[%clk 0:02:57]} 7... Bxf3 {[%clk 0:03:01.3]} 8. Qxf3 {[%clk
0:02:57.8]} 8... e5 {[%clk 0:03:01.5]} 9. dxe5 {[%clk 0:02:53.1]} 9... dxe5
{[%clk 0:03:02.3]} 10. Re1 {[%clk 0:02:41.5]} 10... Nbd7 {[%clk 0:03:01.7]} 11.
Nd2 {[%clk 0:02:33.1]} 11... c6 {[%clk 0:03:00.4]} 12. Bf1 {[%clk 0:02:30.7]}
12... Nc5 {[%clk 0:02:56.7]} 13. a4 {[%clk 0:02:28.6]} 13... a5 {[%clk
0:02:56.2]} 14. Nc4 {[%clk 0:02:22.8]} 14... Ne6 {[%clk 0:02:55.1]} 15. Rd1
{[%clk 0:02:05.9]} 15... Qc7 {[%clk 0:02:54.3]} 16. Be3 {[%clk 0:02:00.4]} 16...
Nd7 {[%clk 0:02:45.3]} 17. Rxd7 {[%clk 0:01:39.1]} 17... Qxd7 {[%clk 0:02:44]}
18. Nb6 {[%clk 0:01:40]} 18... Qc7 {[%clk 0:02:43.5]} 19. Nxa8 {[%clk
0:01:40.5]} 19... Rxa8 {[%clk 0:02:43.4]} 20. Rd1 {[%clk 0:01:32.4]} 20... Rd8
{[%clk 0:02:42.5]} 21. g3 {[%clk 0:01:25.4]} 21... Bf8 {[%clk 0:02:40.2]} 22.
Bc4 {[%clk 0:01:23.1]} 22... Rxd1+ {[%clk 0:02:36.8]} 23. Qxd1 {[%clk
0:01:21.6]} 23... Nc5 {[%clk 0:02:26.9]} 24. Bxc5 {[%clk 0:00:59.8]} 24... Bxc5
{[%clk 0:02:26.6]} 25. Kg2 {[%clk 0:00:54.7]} 25... Kg7 {[%clk 0:02:25.7]} 26.
Qd3 {[%clk 0:00:51.8]} 26... Qd6 {[%clk 0:02:17.1]} 27. Qxd6 {[%clk 0:00:50.9]}
27... Bxd6 {[%clk 0:02:16.9]} 28. h4 {[%clk 0:00:44.5]} 28... Bc5 {[%clk
0:02:15]} 29. Kf3 {[%clk 0:00:44]} 29... Kf6 {[%clk 0:02:14.8]} 30. Ke2 {[%clk
0:00:41.5]} 30... Ke7 {[%clk 0:02:09.7]} 31. f3 {[%clk 0:00:33.9]} 31... f5
{[%clk 0:02:06.9]} 32. g4 {[%clk 0:00:28.2]} 32... Kf6 {[%clk 0:02:04.5]} 33.
g5+ {[%clk 0:00:22.8]} 33... Kg7 {[%clk 0:01:59.5]} 34. exf5 {[%clk 0:00:21.4]}
34... gxf5 {[%clk 0:01:59]} 35. Be6 {[%clk 0:00:20.8]} 35... Kg6 {[%clk
0:01:55]} 36. Bc8 {[%clk 0:00:19.8]} 36... b6 {[%clk 0:01:52.6]} 37. Bd7 {[%clk
0:00:19]} 37... e4 {[%clk 0:01:20.4]} 38. Bxc6 {[%clk 0:00:17.2]} 38... e3
{[%clk 0:01:14.7]} 39. Be8+ {[%clk 0:00:16.6]} 39... Kg7 {[%clk 0:01:14.3]} 40.
h5 {[%clk 0:00:12.7]} 40... Be7 {[%clk 0:01:12.7]} 41. g6 {[%clk 0:00:08.6]}
41... hxg6 {[%clk 0:01:09.1]} 42. Bxg6 {[%clk 0:00:07.7]} 42... f4 {[%clk
0:01:07.6]} 43. Bf5 {[%clk 0:00:04.9]} 43... Kh6 {[%clk 0:01:06.8]} 44. Bg4
{[%clk 0:00:05.3]} 44... Kg5 {[%clk 0:01:06.5]} 45. Kd3 {[%clk 0:00:05.9]} 45...
Bf8 {[%clk 0:01:03.6]} 46. Ke2 {[%clk 0:00:05.9]} 46... Bh6 {[%clk 0:01:03.4]}
47. b4 {[%clk 0:00:04.9]} 47... Bf8 {[%clk 0:01:01.1]} 48. bxa5 {[%clk
0:00:04.5]} 48... bxa5 {[%clk 0:01:01.4]} 49. c4 {[%clk 0:00:05.4]} 49... Bc5
{[%clk 0:01:01.3]} 50. Be6 {[%clk 0:00:05]} 50... Kxh5 {[%clk 0:00:59.9]} 51.
Bd5 {[%clk 0:00:05.6]} 51... Kg5 {[%clk 0:00:59.7]} 52. Bc6 {[%clk 0:00:06.3]}
52... Kf6 {[%clk 0:00:59.7]} 53. Bd5 {[%clk 0:00:07]} 53... Ke5 {[%clk 0:01:00]}
54. Ba8 {[%clk 0:00:07.6]} 54... Kd4 {[%clk 0:01:00.2]} 55. Bd5 {[%clk
0:00:07.5]} 55... Kc3 {[%clk 0:01:00.4]} 56. Be6 {[%clk 0:00:06.6]} 56... Kb3
{[%clk 0:00:58.9]} 57. Bd7 {[%clk 0:00:07.2]} 57... Kxc4 {[%clk 0:00:58.5]} 58.
Bb5+ {[%clk 0:00:07.8]} 58... Kc3 {[%clk 0:00:58.7]} 59. Be8 {[%clk 0:00:08.1]}
59... Bd4 {[%clk 0:00:58.6]} 60. Bb5 {[%clk 0:00:08.7]} 60... Kc2 {[%clk
0:00:58.3]} 61. Be8 {[%clk 0:00:09.3]} 61... Bc3 {[%clk 0:00:58.5]} 62. Bb5
{[%clk 0:00:09.9]} 62... Bd2 {[%clk 0:00:58.7]} 63. Be8 {[%clk 0:00:10.5]} 63...
Kc3 {[%clk 0:00:58.9]} 64. Bb5 {[%clk 0:00:11.1]} 64... Kd4 {[%clk 0:00:59.2]}
65. Be8 {[%clk 0:00:11.8]} 65... Ke5 {[%clk 0:00:59.7]} 66. Bb5 {[%clk
0:00:12.5]} 66... Kf6 {[%clk 0:01:00.6]} 67. Be8 {[%clk 0:00:12.9]} 67... Kg5
{[%clk 0:01:01.5]} 68. Bb5 {[%clk 0:00:13.3]} 68... Kh4 {[%clk 0:01:02.4]} 69.
Bc6 {[%clk 0:00:13.5]} 69... Kg3 {[%clk 0:01:03.3]} 70. Bb5 {[%clk 0:00:14]}
70... Kg2 {[%clk 0:01:04.2]} 71. Bc6 {[%clk 0:00:14.3]} 71... Kg1 {[%clk
0:01:05.1]} 72. Bb5 {[%clk 0:00:14.5]} 72... Bb4 {[%clk 0:01:06]} 73. Bc6 {[%clk
0:00:15.1]} 73... Be7 {[%clk 0:01:05.6]} 74. Bb5 {[%clk 0:00:15.5]} 74... Bh4
{[%clk 0:01:06.5]} 75. Bc6 {[%clk 0:00:15.6]} 75... Bf2 {[%clk 0:01:07.4]} 76.
Bb5 {[%clk 0:00:16]} 76... Kg2 {[%clk 0:01:08.3]} 77. Bc6 {[%clk 0:00:16.4]}
77... Kg3 {[%clk 0:01:09.2]} 78. Bb5 {[%clk 0:00:16.7]} 78... Kh4 {[%clk
0:01:10.1]} 79. Bc6 {[%clk 0:00:17.1]} 79... Kg5 {[%clk 0:01:11]} 80. Bb5 {[%clk
0:00:17.6]} 80... Kf6 {[%clk 0:01:11.9]} 81. Bc6 {[%clk 0:00:18.2]} 81... Ke6
{[%clk 0:01:12.8]} 82. Bb5 {[%clk 0:00:18.7]} 82... Kd6 {[%clk 0:01:13.7]} 83.
Be8 {[%clk 0:00:18.9]} 83... Bh4 {[%clk 0:01:13.7]} 84. Bb5 {[%clk 0:00:19]}
84... Ke7 {[%clk 0:01:13.9]} 85. Bc6 {[%clk 0:00:18.9]} 85... Bf6 {[%clk
0:01:14.8]} 86. Bb5 {[%clk 0:00:18.9]} 86... Kd6 {[%clk 0:01:15]} 87. Be8 {[%clk
0:00:18.7]} 87... Bd4 {[%clk 0:01:15.3]} 88. Bb5 {[%clk 0:00:18.6]} 88... Bb6
{[%clk 0:01:16.2]} 89. Be8 {[%clk 0:00:18.5]} 89... Ke6 {[%clk 0:01:16.1]} 0-1

[Event "*** SCC Grand Prix: Titled Tuesday Blitz"]
[Site "Chess.com"]
[Date "2020.06.23"]
[Round "5"]
[White "Bulldog167"]
[Black "Guenplen"]
[Result "1-0"]
[WhiteElo "2790"]
[BlackElo "2913"]
[TimeControl "180+1"]
[EndTime "10:58:12 PDT"]
[Termination "Bulldog167 won by checkmate"]

1. d4 {[%clk 0:03:00.9]} 1... d5 {[%clk 0:02:59.9]} 2. c4 {[%clk 0:03:01.4]}
2... e6 {[%clk 0:03:00.3]} 3. Nc3 {[%clk 0:03:01.9]} 3... a6 {[%clk 0:02:59.8]}
4. cxd5 {[%clk 0:03:00.3]} 4... exd5 {[%clk 0:03:00.7]} 5. Nf3 {[%clk
0:03:00.8]} 5... Nf6 {[%clk 0:03:01.1]} 6. Bg5 {[%clk 0:03:01.1]} 6... Be6
{[%clk 0:03:01.2]} 7. Bxf6 {[%clk 0:03:01.3]} 7... Qxf6 {[%clk 0:03:02.1]} 8.
Qb3 {[%clk 0:03:01.8]} 8... Ra7 {[%clk 0:03:02.5]} 9. g3 {[%clk 0:03:00.9]} 9...
Nd7 {[%clk 0:02:58.1]} 10. Nxd5 {[%clk 0:02:56]} 10... Qd8 {[%clk 0:02:56.8]}
11. Qe3 {[%clk 0:02:55.5]} 11... c5 {[%clk 0:02:21.5]} 12. Nc3 {[%clk
0:02:24.2]} 12... Nb6 {[%clk 0:02:06.3]} 13. O-O-O {[%clk 0:01:37.7]} 13... Nc4
{[%clk 0:01:59.9]} 14. Qd3 {[%clk 0:01:34.5]} 14... b5 {[%clk 0:01:55.3]} 15. d5
{[%clk 0:01:24.3]} 15... Bc8 {[%clk 0:01:55]} 16. e4 {[%clk 0:01:04.7]} 16...
Bd6 {[%clk 0:01:53.4]} 17. Qc2 {[%clk 0:01:05]} 17... Ne5 {[%clk 0:01:41]} 18.
Nxe5 {[%clk 0:01:05.3]} 18... Bxe5 {[%clk 0:01:41.9]} 19. f4 {[%clk 0:01:06]}
19... Bd4 {[%clk 0:01:39.2]} 20. Bg2 {[%clk 0:01:02]} 20... Bg4 {[%clk
0:01:32.6]} 21. Rde1 {[%clk 0:01:01.9]} 21... O-O {[%clk 0:01:27]} 22. Kb1
{[%clk 0:00:59.6]} 22... c4 {[%clk 0:01:18.7]} 23. h3 {[%clk 0:00:51.3]} 23...
Bd7 {[%clk 0:01:15.1]} 24. e5 {[%clk 0:00:51.4]} 24... b4 {[%clk 0:01:08.2]} 25.
Ne4 {[%clk 0:00:51.6]} 25... Bb5 {[%clk 0:01:03.3]} 26. Qd2 {[%clk 0:00:46.9]}
26... Qb6 {[%clk 0:00:59.5]} 27. Qxb4 {[%clk 0:00:46.3]} 27... Rb8 {[%clk
0:00:51]} 28. Ka1 {[%clk 0:00:16]} 28... a5 {[%clk 0:00:31.8]} 29. Qd2 {[%clk
0:00:15.7]} 29... Be8 {[%clk 0:00:29.3]} 30. Nc3 {[%clk 0:00:13.3]} 30... a4
{[%clk 0:00:28.9]} 31. Re4 {[%clk 0:00:08.5]} 31... Bxc3 {[%clk 0:00:19.5]} 32.
Qxc3 {[%clk 0:00:09.4]} 32... a3 {[%clk 0:00:20.1]} 33. Rb1 {[%clk 0:00:09.7]}
33... Rab7 {[%clk 0:00:19.5]} 34. Re2 {[%clk 0:00:09.5]} 34... Qa7 {[%clk
0:00:11.3]} 35. d6 {[%clk 0:00:04.8]} 35... Rb3 {[%clk 0:00:07.2]} 36. Qc1
{[%clk 0:00:03.1]} 36... h6 {[%clk 0:00:03.9]} 37. Bd5 {[%clk 0:00:02.6]} 37...
Rxg3 {[%clk 0:00:02.4]} 38. Bxc4 {[%clk 0:00:02.6]} 38... Qd4 {[%clk 0:00:01.8]}
39. Rc2 {[%clk 0:00:02.4]} 39... axb2+ {[%clk 0:00:02.7]} 40. Rbxb2 {[%clk
0:00:03.3]} 40... Rc8 {[%clk 0:00:03.2]} 41. Bf1 {[%clk 0:00:03.1]} 41... Rxc2
{[%clk 0:00:02.9]} 42. Qxc2 {[%clk 0:00:04]} 42... Rc3 {[%clk 0:00:03.5]} 43.
Qd2 {[%clk 0:00:03.5]} 43... Qc5 {[%clk 0:00:03.7]} 44. Rb1 {[%clk 0:00:03.5]}
44... Bd7 {[%clk 0:00:04]} 45. Bd3 {[%clk 0:00:04]} 45... g6 {[%clk 0:00:04.4]}
46. Be4 {[%clk 0:00:04.1]} 46... Rc4 {[%clk 0:00:03.3]} 47. Bd3 {[%clk
0:00:04.1]} 47... Rc3 {[%clk 0:00:03.6]} 48. Be4 {[%clk 0:00:04.3]} 48... Rc4
{[%clk 0:00:03.8]} 49. Bd3 {[%clk 0:00:04.9]} 49... Qd4+ {[%clk 0:00:04.3]} 50.
Rb2 {[%clk 0:00:04.9]} 50... Rc3 {[%clk 0:00:04.8]} 51. Bb1 {[%clk 0:00:04.3]}
51... Qc5 {[%clk 0:00:05.1]} 52. Rc2 {[%clk 0:00:04.4]} 52... Rxc2 {[%clk
0:00:04.9]} 53. Qxc2 {[%clk 0:00:05.3]} 53... Qd4+ {[%clk 0:00:05.3]} 54. Qb2
{[%clk 0:00:06]} 54... Qxf4 {[%clk 0:00:06.1]} 55. Qc3 {[%clk 0:00:04.9]} 55...
g5 {[%clk 0:00:05.6]} 56. a3 {[%clk 0:00:03.6]} 56... g4 {[%clk 0:00:05.9]} 57.
hxg4 {[%clk 0:00:03.2]} 57... Bxg4 {[%clk 0:00:06.5]} 58. Qb2 {[%clk 0:00:02.9]}
58... h5 {[%clk 0:00:06.2]} 59. Qb8+ {[%clk 0:00:02]} 59... Kg7 {[%clk
0:00:06.3]} 60. Qb2 {[%clk 0:00:01.1]} 60... Be6 {[%clk 0:00:06.5]} 61. Qc3
{[%clk 0:00:01.6]} 61... Kg8 {[%clk 0:00:06]} 62. a4 {[%clk 0:00:02.3]} 62...
Qxa4+ {[%clk 0:00:05.1]} 63. Kb2 {[%clk 0:00:03]} 63... Qf4 {[%clk 0:00:05.2]}
64. Qd3 {[%clk 0:00:02.7]} 64... h4 {[%clk 0:00:05.3]} 65. Qh7+ {[%clk
0:00:02.6]} 65... Kf8 {[%clk 0:00:03.4]} 66. Qh8# {[%clk 0:00:03.5]} 1-0